lending/lending_fUSD_20241005
["ID","MTS","AMOUNT","RATE_DAILY","PERIOD"]
[339922227,1728155444157,-233.01028702,0.000247,2]
[339922228,1728155444168,-15177.80805588,0.000249,2]
[339922229,1728155444177,-38926.2898852,0.00025,2]
[339922230,1728155444186,-2882.049365,0.00025,2]
[339922231,1728155444195,-327.42884554,0.00025,2]
[339922232,1728155444206,-600.0,0.00025,2]
[339922233,1728155444215,-3203.70210022,0.000251,2]
[339922234,1728155444223,-476.04,0.00025205,2]
[339922235,1728155444232,-178.0,0.00025373,2]
[339922236,1728155444241,-217.56,0.00025548,2]
[339922237,1728155444250,-160.21,0.00025914,30]
[339922238,1728155444260,-626.0,0.00025996,2]
[339922239,1728155444269,-559.0,0.00025996,2]
[339922240,1728155444278,-934.0,0.00025996,2]
[339922241,1728155444287,-554.0,0.00025996,2]
[339922242,1728155444295,-1906.0,0.00025996,2]
[339922243,1728155444305,-3352.0,0.00025996,2]
[339922244,1728155444315,-547.138,0.00025996,2]
[339922245,1728155444323,-1909.0,0.00025996,2]
[339922246,1728155444332,-5875.0,0.00025997,2]
[339922247,1728155444341,-150.0,0.00025997,2]
[339922248,1728155444350,-13510.0,0.00025997,2]
[339922249,1728155444359,-1148.0,0.00025997,2]
[339922250,1728155444369,-4283.04734178,0.00026,2]
[339922251,1728155444378,-4433.65,0.00026,2]
[339922252,1728155444387,-150.0,0.00026001,2]
[339922253,1728155444396,-811.0,0.00026001,2]
[339922254,1728155444405,-449.0,0.00026001,2]
[339922255,1728155444414,-1297.0,0.00026001,2]
[339922256,1728155444423,-515.74408701,0.0002604,2]
[339922257,1728155444432,-187.41658322,0.00026347,13]
[339922258,1728155444442,-496.335,0.00026347,13]
[339922259,1728155444451,-25995.93786478,0.000264,2]
[339922260,1728155444460,-373.08,0.00026714,2]
[339922261,1728155444469,-1500.0,0.000268,2]
[339922262,1728155444478,-3000.0,0.000268,2]
[339922263,1728155444487,-800.0,0.00026986,120]
[339922264,1728155444496,-800.0,0.00026986,120]
[339922265,1728155444505,-800.0,0.00026986,120]
[339922266,1728155444515,-800.0,0.00026986,120]
[339922267,1728155444524,-800.0,0.00026986,120]
[339922268,1728155444533,-800.0,0.00026986,120]
[339922269,1728155444542,-800.0,0.00026986,120]
[339922270,1728155444552,-800.0,0.00026986,120]
[339922271,1728155444561,-800.0,0.00026986,120]
[339922272,1728155444570,-800.0,0.00026986,120]
[339922273,1728155444579,-800.0,0.00026986,120]
[339922274,1728155444589,-800.0,0.00026986,120]
[339922275,1728155444598,-800.0,0.00026986,120]
[339922276,1728155444607,-11098.96514018,0.00027,2]
[339922277,1728155444616,-408.08809594,0.00027,2]
[339922278,1728155444625,-1419.27,0.00027,10]
[339922279,1728155444634,-1027.9786788,0.00027,2]
[339922280,1728155444643,-480.46388968,0.00027,2]
[339922281,1728155444652,-650.0,0.00027,2]
[339922282,1728155444662,-3574.812309,0.00027,2]
[339922283,1728155444671,-3471.11,0.00027123,2]
[339922284,1728155444680,-226705.28326849,0.00027375,2]
[339922285,1728155444690,-750.0,0.00027397,2]
[339922286,1728155444699,-250.0,0.00027397,2]
[339922287,1728155444708,-612.16644271,0.000274,2]
[339922288,1728155444717,-190.3757756,0.000275,2]
[339922289,1728155444727,-13335.63756982,0.000275,2]
[339922290,1728155444736,-151.0,0.000275,7]
[339922291,1728155444746,-151.0,0.000275,7]
[339922292,1728155444755,-934.4518797,0.00027847,2]
[339922293,1728155444764,-3359.04934507,0.00028,2]
[339922294,1728155444773,-24886.2767023,0.00028,2]
[339922295,1728155444782,-497.72553405,0.00028,2]
[339922296,1728155444791,-9946.23,0.00028203,2]
[339922297,1728155444800,-557.20374832,0.00028387,2]
[339922298,1728155444810,-217.56,0.00028493,2]
[339922299,1728155444819,-160.76,0.00028963,2]
[339922300,1728155444828,-373.08,0.00028978,2]
[339922301,1728155444838,-624.0,0.00028996,2]
[339922302,1728155444847,-559.0,0.00028996,2]
[339922303,1728155444857,-934.0,0.00028996,2]
[339922304,1728155444867,-554.0,0.00028996,2]
[339922305,1728155444876,-1906.0,0.00028996,2]
[339922306,1728155444886,-3352.0,0.00028996,2]
[339922307,1728155444896,-1909.0,0.00028996,2]
[339922308,1728155444906,-5875.0,0.00028997,2]
[339922309,1728155444915,-150.0,0.00028997,2]
[339922310,1728155444926,-13510.0,0.00028997,2]
[339922311,1728155444935,-1148.0,0.00028997,2]
[339922312,1728155444945,-173.0,0.00028997,2]
[339922313,1728155444955,-700.0,0.00029,2]
[339922314,1728155444964,-808.0,0.00029001,2]
[339922315,1728155444974,-449.0,0.00029001,2]
[339922316,1728155444984,-476.04,0.00029041,2]
[339922317,1728155444993,-1500.0,0.000296,2]
[339922318,1728155445003,-3000.0,0.000296,2]
[339922319,1728155445012,-160.21,0.0002969,30]
[339922320,1728155445022,-50000.0,0.0003,20]
[339922321,1728155445031,-50000.0,0.0003,30]
[339922322,1728155445040,-24999.999998,0.0003,2]
[339922323,1728155445049,-1000.0,0.00030136,2]
[339922324,1728155445058,-984.57713586,0.000303,30]
[339922325,1728155445068,-173.0,0.00030447,2]
[339922326,1728155445077,-50000.0,0.00031,21]
[339922327,1728155445087,-50000.0,0.00031,31]
[339922328,1728155445096,-750.0,0.00031,2]
[339922329,1728155445105,-373.08,0.00031242,2]
[339922330,1728155445114,-754.03,0.0003173,2]
[339922331,1728155445123,-161643.86,0.00031978,30]
[339922332,1728155445134,-559.0,0.00031996,2]
[339922333,1728155445143,-934.0,0.00031996,2]
[339922334,1728155445152,-1116.933,0.00031996,2]
[339922335,1728155445161,-563.059,0.00031996,2]
[339922336,1728155445175,-548.196,0.00031996,2]
[339922337,1728155445184,-5875.0,0.00031997,2]
[339922338,1728155445193,-150.0,0.00031997,2]
[339922339,1728155445202,-13510.0,0.00031997,2]
[339922340,1728155445212,-373.226,0.00031997,2]
[339922341,1728155445222,-50000.0,0.00032,22]
[339922342,1728155445230,-50000.0,0.00032,32]
[339922343,1728155445238,-151.0,0.00032,7]
[339922344,1728155445247,-168.90356,0.00032,7]
[339922345,1728155445257,-168.90356,0.00032,7]
[339922346,1728155445266,-151.0,0.00032,7]
[339922347,1728155445275,-151.0,0.00032,7]
[339922348,1728155445284,-151.0,0.00032,7]
[339922349,1728155445293,-151.0,0.00032,7]
[339922350,1728155445302,-151.0,0.00032,7]
[339922351,1728155445315,-452.493256,0.00032,7]
[339922352,1728155445326,-191.094604,0.00032,7]
[339922353,1728155445335,-452.493256,0.00032,7]
[339922354,1728155445344,-191.094604,0.00032,7]
[339922355,1728155445353,-151.0,0.00032,7]
[339922356,1728155445363,-447.0,0.00032001,2]
[339922357,1728155445372,-150.0,0.00032063,4]
[339922358,1728155445382,-500.0,0.00032079,10]
[339922359,1728155445392,-199.3,0.0003208,30]
[339922360,1728155445401,-859.0,0.0003208,30]
[339922361,1728155445410,-371.05978321,0.0003208,2]
[339922362,1728155445418,-150.0,0.0003208,2]
[339922363,1728155445427,-194.0,0.0003208,30]
[339922364,1728155445436,-194.0,0.0003208,30]
[339922365,1728155445445,-194.0,0.0003208,30]
[339922366,1728155445454,-10522.05287384,0.0003208,2]
[339922367,1728155445465,-155.89614445,0.0003208,2]
[339922368,1728155445474,-150.0,0.0003208,2]
[339922369,1728155445483,-152.25098931,0.0003208,3]
[339922370,1728155445492,-1210.0,0.0003208,2]
[339922371,1728155445503,-341.14155315,0.0003208,2]
[339922372,1728155445512,-2944.23968604,0.0003208,2]
[339922373,1728155445522,-5473.13228632,0.0003208,2]
[339922374,1728155445531,-1488.63803073,0.0003208,2]
[339922375,1728155445541,-7224.87611847,0.0003208,2]
[339922376,1728155445550,-1008.38363503,0.0003208,2]
[339922377,1728155445565,-5077.94068024,0.0003208,2]
[339922378,1728155445578,-2676.73532637,0.0003208,2]
[339922379,1728155445587,-2404.32402498,0.0003208,2]
[339922380,1728155445596,-2623.13226499,0.0003208,2]
[339922381,1728155445605,-10014.63883585,0.0003208,2]
[339922382,1728155445614,-242.50235571,0.0003208,2]
[339922383,1728155445623,-3180.68373081,0.0003208,2]
[339922384,1728155445632,-1452.21548181,0.0003208,2]
[339922385,1728155445641,-22339.0728966,0.0003208,2]
[339922386,1728155445650,-7560.05209368,0.0003208,2]
[339922387,1728155445660,-1046.89013832,0.0003208,2]
[339922388,1728155445669,-5847.49111893,0.0003208,2]
[339922389,1728155445678,-852.2481102,0.0003208,2]
[339922390,1728155445688,-1024.07626952,0.0003208,2]
[339922391,1728155445697,-187.02182345,0.0003208,2]
[339922392,1728155445866,-9047.90325135,0.0003208,2]
[339922393,1728155445876,-1284.10339331,0.0003208,2]
[339922394,1728155445886,-4842.04665025,0.0003208,2]
[339922395,1728155445896,-290.82919053,0.0003208,2]
[339922396,1728155445905,-7551.26100938,0.0003208,2]
[339922397,1728155445915,-22297.70986225,0.0003208,2]
[339922398,1728155445924,-12572.86632748,0.0003208,2]
[339922399,1728155445934,-1882.49478589,0.0003208,2]
[339922400,1728155445945,-180.35056117,0.0003208,2]
[339922401,1728155445956,-5471.99614093,0.0003208,2]
[339922402,1728155445966,-643.0,0.0003208,2]
[339922403,1728155445975,-950.92224454,0.0003208,2]
[339922404,1728155445984,-28771.10577863,0.0003208,2]
[339922405,1728155445994,-7004.942566,0.0003208,2]
[339922406,1728155446004,-561.66652824,0.0003208,2]
[339922407,1728155446013,-1800.656244,0.0003208,2]
[339922408,1728155446023,-3179.99792639,0.0003208,2]
[339922409,1728155446032,-171.96460738,0.0003208,2]
[339922410,1728155446041,-550.0,0.0003208,2]
[339922411,1728155446050,-1437.06349262,0.0003208,2]
[339922412,1728155446065,-988.22268927,0.0003208,2]
[339922413,1728155446074,-935.77931685,0.0003208,2]
[339922414,1728155446087,-10494.0321298,0.0003208,2]
[339922415,1728155446097,-14652.23778425,0.0003208,2]
[339922416,1728155446106,-170.32081358,0.0003208,2]
[339922417,1728155446116,-6000.0,0.0003208,2]
[339922418,1728155446125,-1013.04079561,0.0003208,2]
[339922419,1728155446135,-4729.70379015,0.0003208,2]
[339922420,1728155446144,-552.16441781,0.0003208,2]
[339922421,1728155446154,-150.0,0.0003208,2]
[339922422,1728155446163,-18483.58698595,0.0003208,2]
[339922424,1728155446173,-1347.55373783,0.0003208,2]
[339922426,1728155446186,-614.21959361,0.0003208,2]
[339922427,1728155446195,-210.55877308,0.0003208,2]
[339922429,1728155446205,-440.76290424,0.0003208,2]
[339922431,1728155446214,-1046.46168173,0.0003208,2]
[339922432,1728155446224,-2500.0,0.0003208,2]
[339922433,1728155446233,-568.13879078,0.0003208,2]
[339922434,1728155446242,-2332.52351593,0.0003208,2]
[339922436,1728155446253,-528.52941864,0.0003208,2]
[339922437,1728155446262,-894.70813484,0.0003208,2]
[339922438,1728155446272,-1271.69761939,0.0003208,2]
[339922439,1728155446281,-472.31456189,0.0003208,2]
[339922440,1728155446290,-1554.25583305,0.0003208,2]
[339922441,1728155446299,-2000.0,0.0003208,2]
[339922442,1728155446310,-10773.15152052,0.0003208,2]
[339922443,1728155446319,-319.48652983,0.0003208,2]
[339922444,1728155446328,-2192.95786454,0.0003208,2]
[339922445,1728155446337,-537.03137125,0.0003208,2]
[339922446,1728155446347,-4907.08032678,0.0003208,2]
[339922447,1728155446357,-21044.11068391,0.0003208,2]
[339922448,1728155446365,-357.58044911,0.0003208,2]
[339922449,1728155446377,-164.47470587,0.0003208,2]
[339922450,1728155446388,-2161.16855161,0.0003208,2]
[339922451,1728155446397,-278.08063318,0.0003208,2]
[339922452,1728155446406,-636.58279498,0.0003208,2]
[339922453,1728155446416,-8239.90105516,0.0003208,2]
[339922454,1728155446425,-2293.14533149,0.0003208,2]
[339922455,1728155446435,-150.0,0.0003208,2]
[339922456,1728155446445,-14470.49979962,0.0003208,2]
[339922457,1728155446454,-1801.36010665,0.0003208,2]
[339922458,1728155446463,-3877.80920874,0.0003208,2]
[339922459,1728155446472,-11638.62968927,0.0003208,2]
[339922460,1728155446481,-1789.37809549,0.0003208,2]
[339922461,1728155446491,-13778.20261944,0.0003208,2]
[339922462,1728155446500,-215.97237988,0.0003208,2]
[339922463,1728155446509,-208.78442182,0.0003208,2]
[339922464,1728155446518,-4002.82444924,0.0003208,2]
[339922465,1728155446528,-5036.65511089,0.0003208,2]
[339922466,1728155446537,-3184.29744804,0.0003208,2]
[339922467,1728155446546,-6878.95911448,0.0003208,3]
[339922468,1728155446558,-7950.64465854,0.0003208,2]
[339922469,1728155446567,-1039.0,0.0003208,2]
[339922471,1728155446576,-1543.29354867,0.0003208,2]
[339922472,1728155446585,-150.0,0.0003208,30]
[339922474,1728155446595,-970.0,0.0003208,2]
[339922476,1728155446606,-151.0,0.0003208,7]
[339922477,1728155446615,-151.0,0.0003208,7]
[339922478,1728155446625,-197.665981,0.0003208,7]
[339922479,1728155446635,-151.0,0.0003208,7]
[339922480,1728155446644,-151.0,0.0003208,7]
[339922481,1728155446655,-151.0,0.0003208,7]
[339922482,1728155446664,-151.0,0.0003208,7]
[339922483,1728155446673,-151.0,0.0003208,7]
[339922484,1728155446682,-151.0,0.0003208,7]
[339922485,1728155446691,-151.0,0.0003208,7]
[339922486,1728155446701,-151.0,0.0003208,7]
[339922487,1728155446709,-151.0,0.0003213,7]
[339922488,1728155446718,-151.0,0.0003213,7]
[339922489,1728155446727,-151.0,0.0003213,7]
[339922490,1728155446736,-151.0,0.0003213,7]
[339922491,1728155446745,-151.0,0.0003213,7]
[339922492,1728155446754,-193.930757,0.0003213,7]
[339922493,1728155446764,-193.930757,0.0003213,7]
[339922494,1728155446773,-157.718252,0.0003213,7]
[339922495,1728155446782,-157.718252,0.0003213,7]
[339922496,1728155446791,-209.860222,0.0003213,7]
[339922497,1728155446801,-209.860222,0.0003213,7]
[339922498,1728155446812,-151.0,0.0003213,7]
[339922499,1728155446821,-151.0,0.0003213,7]
[339922500,1728155446831,-151.0,0.0003213,7]
[339922501,1728155446840,-151.0,0.0003213,7]
[339922502,1728155446849,-151.0,0.0003213,7]
[339922503,1728155446859,-151.0,0.0003213,7]
[339922504,1728155446868,-151.0,0.0003213,7]
[339922505,1728155446877,-400.149998,0.0003213,7]
[339922506,1728155446887,-400.149998,0.0003213,7]
[339922507,1728155446895,-1500.0,0.000323,2]
[339922508,1728155446905,-1250.0,0.00032876,2]
[339922509,1728155446915,-4000.0,0.00032877,28]
[339922510,1728155446923,-1500.0,0.00032877,50]
[339922511,1728155446933,-476.04,0.00032877,2]
[339922512,1728155446942,-50000.0,0.00033,23]
[339922513,1728155446951,-50000.0,0.00033,33]
[339922514,1728155446960,-800.0,0.00033,2]
[339922515,1728155446969,-501.043865,0.00033,14]
[339922516,1728155446978,-500.0,0.00033,2]
[339922517,1728155446987,-500.0,0.00033,2]
[339922518,1728155446997,-500.0,0.00033,2]
[339922519,1728155447007,-500.0,0.00033,2]
[339922520,1728155447017,-500.0,0.00033,2]
[339922521,1728155447026,-500.0,0.00033,2]
[339922522,1728155447036,-500.0,0.00033,2]
[339922523,1728155447045,-500.0,0.00033,2]
[339922524,1728155447055,-500.0,0.00033,2]
[339922525,1728155447064,-500.0,0.00033,2]
[339922526,1728155447074,-500.0,0.00033,2]
[339922527,1728155447086,-500.0,0.00033,2]
[339922528,1728155447095,-500.0,0.00033,2]
[339922529,1728155447105,-500.0,0.00033,2]
[339922530,1728155447115,-500.0,0.00033,2]
[339922531,1728155447124,-500.0,0.00033,2]
[339922532,1728155447134,-500.0,0.00033,2]
[339922533,1728155447143,-500.0,0.00033,2]
[339922534,1728155447153,-500.0,0.00033,2]
[339922535,1728155447163,-500.0,0.00033,2]
[339922536,1728155447172,-500.0,0.00033,2]
[339922537,1728155447183,-500.0,0.00033,2]
[339922538,1728155447193,-500.0,0.00033,2]
[339922539,1728155447203,-500.0,0.00033,2]
[339922540,1728155447213,-500.0,0.00033,2]
[339922541,1728155447223,-500.0,0.00033,2]
[339922542,1728155447232,-500.0,0.00033,2]
[339922543,1728155447242,-500.0,0.00033,2]
[339922544,1728155447251,-500.0,0.00033,2]
[339922545,1728155447260,-500.0,0.00033,2]
[339922546,1728155447270,-500.0,0.00033,2]
[339922547,1728155447279,-500.0,0.00033,2]
[339922548,1728155447288,-500.0,0.00033,2]
[339922549,1728155447297,-500.0,0.00033,2]
[339922550,1728155447308,-500.0,0.00033,2]
[339922551,1728155447317,-500.0,0.00033,2]
[339922552,1728155447327,-500.0,0.00033,2]
[339922553,1728155447336,-500.0,0.00033,2]
[339922554,1728155447345,-500.0,0.00033,2]
[339922555,1728155447355,-500.0,0.00033,2]
[339922556,1728155447364,-500.0,0.00033,2]
[339922557,1728155447374,-500.0,0.00033,2]
[339922558,1728155447384,-500.0,0.00033,2]
[339922559,1728155447393,-500.0,0.00033,2]
[339922560,1728155447403,-500.0,0.00033,2]
[339922561,1728155447414,-500.0,0.00033,2]
[339922562,1728155447423,-500.0,0.00033,2]
[339922563,1728155447432,-500.0,0.00033,2]
[339922564,1728155447442,-500.0,0.00033,2]
[339922565,1728155447452,-500.0,0.00033,2]
[339922566,1728155447461,-500.0,0.00033,2]
[339922567,1728155447470,-500.0,0.00033,2]
[339922568,1728155447479,-500.0,0.00033,2]
[339922569,1728155447488,-500.0,0.00033,2]
[339922570,1728155447498,-500.0,0.00033,2]
[339922571,1728155447507,-500.0,0.00033,2]
[339922572,1728155447517,-500.0,0.00033,2]
[339922573,1728155447526,-500.0,0.00033,2]
[339922574,1728155447535,-500.0,0.00033,2]
[339922575,1728155447545,-500.0,0.00033,2]
[339922576,1728155447554,-500.0,0.00033,2]
[339922577,1728155447565,-500.0,0.00033,2]
[339922578,1728155447574,-500.0,0.00033,2]
[339922579,1728155447584,-500.0,0.00033,2]
[339922580,1728155447593,-500.0,0.00033,2]
[339922581,1728155447603,-500.0,0.00033,2]
[339922582,1728155447613,-500.0,0.00033,2]
[339922583,1728155447623,-500.0,0.00033,2]
[339922584,1728155447632,-500.0,0.00033,2]
[339922585,1728155447641,-500.0,0.00033,2]
[339922586,1728155447651,-500.0,0.00033,2]
[339922587,1728155447660,-500.0,0.00033,2]
[339922588,1728155447670,-500.0,0.00033,2]
[339922589,1728155447680,-500.0,0.00033,2]
[339922590,1728155447690,-500.0,0.00033,2]
[339922591,1728155447699,-500.0,0.00033,2]
[339922592,1728155447709,-500.0,0.00033,2]
[339922593,1728155447719,-500.0,0.00033,2]
[339922594,1728155447728,-500.0,0.00033,2]
[339922595,1728155447737,-500.0,0.00033,2]
[339922596,1728155447747,-500.0,0.00033,2]
[339922597,1728155447756,-500.0,0.00033,2]
[339922598,1728155447765,-500.0,0.00033,2]
[339922599,1728155447774,-500.0,0.00033,2]
[339922600,1728155447784,-500.0,0.00033,2]
[339922601,1728155447793,-500.0,0.00033,2]
[339922602,1728155447803,-500.0,0.00033,2]
[339922603,1728155447812,-500.0,0.00033,2]
[339922604,1728155447820,-500.0,0.00033,2]
[339922605,1728155447830,-500.0,0.00033,2]
[339922606,1728155447839,-500.0,0.00033,2]
[339922607,1728155447849,-500.0,0.00033,2]
[339922608,1728155447859,-500.0,0.00033,2]
[339922609,1728155447869,-500.0,0.00033,2]
[339922610,1728155447878,-500.0,0.00033,2]
[339922611,1728155447888,-500.0,0.00033,2]
[339922612,1728155447897,-500.0,0.00033,2]
[339922613,1728155447907,-500.0,0.00033,2]
[339922614,1728155447916,-500.0,0.00033,2]
[339922615,1728155447926,-500.0,0.00033,2]
[339922616,1728155447935,-500.0,0.00033,2]
[339922617,1728155447944,-500.0,0.00033,2]
[339922618,1728155447954,-500.0,0.00033,2]
[339922619,1728155447963,-500.0,0.00033,2]
[339922620,1728155447973,-500.0,0.00033,2]
[339922621,1728155447982,-500.0,0.00033,2]
[339922622,1728155447991,-500.0,0.00033,2]
[339922623,1728155448001,-500.0,0.00033,2]
[339922624,1728155448010,-500.0,0.00033,2]
[339922625,1728155448019,-500.0,0.00033,2]
[339922626,1728155448028,-500.0,0.00033,2]
[339922627,1728155448038,-500.0,0.00033,2]
[339922628,1728155448048,-500.0,0.00033,2]
[339922629,1728155448058,-500.0,0.00033,2]
[339922630,1728155448067,-500.0,0.00033,2]
[339922631,1728155448077,-500.0,0.00033,2]
[339922632,1728155448087,-500.0,0.00033,2]
[339922633,1728155448097,-500.0,0.00033,2]
[339922634,1728155448106,-500.0,0.00033,2]
[339922635,1728155448116,-661.94,0.00033151,120]
[339922636,1728155448126,-160.21,0.00033467,120]
[339922637,1728155448136,-373.08,0.00033506,2]
[339922638,1728155448146,-428.85,0.00033533,2]
[339922639,1728155448155,-304.68,0.00033533,2]
[339922640,1728155448215,-261.49,0.00033533,2]
[339922641,1728155448225,-428.85,0.00033533,2]
[339922642,1728155448235,-150.0,0.00033533,2]
[339922643,1728155448244,-428.85,0.00033533,2]
[339922644,1728155448253,-150.0,0.00033533,2]
[339922645,1728155448264,-428.85,0.00033533,2]
[339922646,1728155448273,-150.0,0.00033533,2]
[339922647,1728155448283,-150.0,0.00033533,2]
[339922648,1728155448292,-50000.0,0.00034,24]
[339922649,1728155448302,-50000.0,0.00034,34]
[339922650,1728155448312,-150.0,0.00034548,10]
[339922651,1728155448322,-920.0,0.00034996,2]
[339922652,1728155448331,-5573.458,0.00034997,2]
[339922653,1728155448340,-150.0,0.00034997,2]
[339922654,1728155448349,-13510.0,0.00034997,2]
[339922655,1728155448359,-50000.0,0.00035,25]
[339922656,1728155448368,-50000.0,0.00035,35]
[339922657,1728155448378,-17324.1113396,0.00035,20]
[339922658,1728155448387,-273.92699091,0.00035,2]
[339922659,1728155448396,-151.399184,0.00035,7]
[339922660,1728155448406,-151.0,0.00035,7]
[339922661,1728155448415,-850.0,0.00035,2]
[339922662,1728155448424,-1500.0,0.000351,2]
[339922663,1728155448433,-2999.99,0.00035359,2]
[339922664,1728155448443,-3000.0,0.00035359,2]
[339922665,1728155448453,-3000.0,0.00035359,2]
[339922666,1728155448462,-3000.0,0.00035359,2]
[339922667,1728155448471,-3000.0,0.00035359,2]
[339922668,1728155448481,-1102.4,0.00035359,2]
[339922669,1728155448491,-151.0,0.00035616,7]
[339922670,1728155448500,-168.90356,0.00035616,7]
[339922671,1728155448510,-168.90356,0.00035616,7]
[339922672,1728155448520,-151.0,0.00035616,7]
[339922673,1728155448529,-151.0,0.00035616,7]
[339922674,1728155448538,-151.0,0.00035616,7]
[339922675,1728155448548,-277.327636,0.00035616,7]
[339922676,1728155448558,-151.0,0.00035616,7]
[339922677,1728155448567,-1500.0,0.00035616,2]
[339922678,1728155448576,-1000.0,0.00035616,13]
[339922679,1728155448586,-1000.0,0.00035616,13]
[339922680,1728155448595,-1000.0,0.00035616,13]
[339922681,1728155448605,-1000.0,0.00035616,13]
[339922682,1728155448614,-1000.0,0.00035616,13]
[339922683,1728155448624,-1000.0,0.00035616,13]
[339922684,1728155448633,-1000.0,0.00035616,13]
[339922685,1728155448643,-1000.0,0.00035616,13]
[339922686,1728155448652,-1000.0,0.00035616,13]
[339922687,1728155448662,-1000.0,0.00035616,13]
[339922688,1728155448671,-1000.0,0.00035616,13]
[339922689,1728155448681,-1000.0,0.00035616,13]
[339922690,1728155448690,-1000.0,0.00035616,13]
[339922691,1728155448700,-1000.0,0.00035616,13]
[339922692,1728155448709,-1000.0,0.00035616,13]
[339922693,1728155448718,-1000.0,0.00035616,13]
[339922694,1728155448727,-1000.0,0.00035616,13]
[339922695,1728155448737,-1000.0,0.00035616,13]
[339922696,1728155448746,-1000.0,0.00035616,13]
[339922697,1728155448755,-1000.0,0.00035616,13]
[339922698,1728155448765,-1000.0,0.00035616,13]
[339922699,1728155448774,-1000.0,0.00035616,13]
[339922700,1728155448783,-1000.0,0.00035616,13]
[339922701,1728155448792,-1000.0,0.00035616,13]
[339922702,1728155448801,-1000.0,0.00035616,13]
[339922703,1728155448813,-1000.0,0.00035616,13]
[339922704,1728155448828,-1000.0,0.00035616,13]
[339922705,1728155448837,-1006.0,0.00035616,13]
[339922706,1728155448847,-373.08,0.0003577,2]
[339922707,1728155448857,-50000.0,0.00036,26]
[339922708,1728155448867,-50000.0,0.00036,36]
[339922709,1728155448876,-1541.76,0.00036,30]
[339922710,1728155448885,-151.0,0.00036,7]
[339922711,1728155448894,-151.0,0.00036,7]
[339922712,1728155448904,-269.74658,0.00036,7]
[339922713,1728155448914,-452.493256,0.00036,7]
[339922714,1728155448925,-191.094604,0.00036,7]
[339922715,1728155448934,-452.493256,0.00036,7]
[339922716,1728155448944,-191.094604,0.00036,7]
[339922717,1728155448954,-151.0,0.00036,7]
[339922718,1728155448963,-997.12,0.00036,10]
[339922719,1728155448973,-151.0,0.00036,7]
[339922720,1728155448982,-152.0,0.00036012,3]
[339922721,1728155448992,-151.0,0.00036361,2]
[339922722,1728155449001,-309.72,0.000366,30]
[339922723,1728155449011,-50000.0,0.00037,27]
[339922724,1728155449021,-50000.0,0.00037,37]
[339922725,1728155449031,-900.0,0.00037,2]
[339922726,1728155449040,-1000.0,0.00037023,2]
[339922727,1728155449049,-160.21,0.00037243,120]
[339922728,1728155449059,-2800.0,0.00037328,60]
[339922729,1728155449071,-500.0,0.00037328,60]
[339922730,1728155449080,-900.0,0.00037328,60]
[339922731,1728155449090,-4000.0,0.00037328,60]
[339922732,1728155449099,-409.09761012,0.00037407,14]
[339922733,1728155449108,-1000.0,0.00037542,14]
[339922734,1728155449118,-1000.0,0.00037542,14]